bitfinex-derivatives/quotes_BNBF0:USTF0_20250715
["timestamp","ask_amount","ask_price","bid_price","bid_amount"]
[1752611751520,0.97640819,685.9,685.08,0.9713569]
[1752611752124,0.97640819,685.89,685.07,0.9713569]
[1752611752421,0.97640819,685.89,685.08,0.9713569]
[1752611752621,0.97640819,685.89,685.09,0.9713569]
[1752611753327,0.97640819,685.88,685.11,0.9713569]
[1752611754326,0.97640819,685.87,685.12,0.9713569]
[1752611754822,0.25364801,686.52,685.13,0.9713569]
[1752611754823,0.97640819,685.86,685.13,0.9713569]
[1752611755323,0.97640819,685.83,685.13,0.9713569]
[1752611755932,0.97640819,685.84,685.13,0.9713569]
[1752611756231,0.97640819,685.83,685.14,0.9713569]
[1752611756933,0.97640819,685.84,685.15,0.9713569]
[1752611757132,0.97640819,685.84,685.14,0.9713569]
[1752611757332,0.97640819,685.83,685.15,0.9713569]
[1752611758034,0.97640819,685.79,685.1,0.9713569]
[1752611758231,0.97640819,685.77,685.09,0.9713569]
[1752611758431,0.97640819,685.73,685.06,0.9713569]
[1752611758836,0.97640819,685.71,685.03,0.9713569]
[1752611759131,0.97640819,685.69,685.02,0.9713569]
[1752611759333,0.97640819,685.65,684.98,0.9713569]
[1752611759831,0.97640819,685.64,684.98,0.9713569]
[1752611760635,0.97640819,685.64,684.61,0.25374233]
[1752611760636,0.97640819,685.67,685.0,0.9713569]
[1752611761135,0.97640819,685.66,685.01,0.9713569]
[1752611761533,0.97640819,685.65,685.01,0.9713569]
[1752611762133,0.97640819,685.64,685.02,0.9713569]
[1752611762337,0.97640819,685.66,685.02,0.9713569]
[1752611762535,0.97640819,685.68,685.05,0.9713569]
[1752611762839,0.97640819,685.69,685.06,0.9713569]
[1752611763536,0.97640819,685.69,685.07,0.9713569]
[1752611764340,0.97640819,685.68,685.07,0.9713569]
[1752611764540,0.97640819,685.68,685.08,0.9713569]
[1752611765039,0.97640819,685.7,685.09,0.9713569]
[1752611765537,0.97640819,685.69,685.1,0.9713569]
[1752611765842,0.97640819,685.69,684.61,0.25374233]
[1752611765843,0.97640819,685.72,685.08,0.9713569]
[1752611766642,0.97640819,685.71,685.08,0.9713569]
[1752611767239,0.97640819,685.71,685.09,0.9713569]
[1752611768139,0.97640819,685.74,685.07,0.9713569]
[1752611768336,0.97640819,685.73,685.07,0.9713569]
[1752611768537,0.97640819,685.73,685.08,0.9713569]
[1752611769441,0.97640819,685.72,685.08,0.9713569]
[1752611769642,0.97640819,685.73,685.08,0.9713569]
[1752611770244,0.97640819,685.72,685.08,0.9713569]
[1752611770844,0.97640819,685.79,685.04,0.9713569]
[1752611771849,0.97640819,685.82,685.07,0.9713569]
[1752611774649,0.97640819,685.81,685.07,0.9713569]
[1752611775448,0.97640819,685.81,685.08,0.9713569]
[1752611775854,0.97640819,685.82,685.07,0.9713569]
[1752611778156,0.97640819,685.81,685.08,0.9713569]
[1752611778653,0.97640819,685.79,685.05,0.9713569]
[1752611778953,0.97640819,685.76,685.02,0.9713569]
[1752611779653,0.97640819,685.73,684.99,0.9713569]
[1752611779854,0.97640819,685.71,684.97,0.9713569]
[1752611780158,0.97640819,685.7,684.97,0.9713569]
[1752611780358,0.97640819,685.71,684.97,0.9713569]
[1752611780858,0.97640819,685.67,685.0,0.9713569]
[1752611781855,0.97640819,685.65,685.01,0.9713569]
[1752611782059,0.97640819,685.61,685.04,0.9713569]
[1752611782259,0.97640819,685.62,685.04,0.9713569]
[1752611782659,0.97640819,685.64,685.06,0.9713569]
[1752611783156,0.97640819,685.64,685.07,0.9713569]
[1752611783354,0.97640819,685.65,685.07,0.9713569]
[1752611783860,0.97640819,685.66,685.07,0.9713569]
[1752611788458,0.97640819,685.65,685.07,0.9713569]
[1752611789260,0.97640819,685.66,685.07,0.9713569]
[1752611789560,0.97640819,685.7,685.12,0.9713569]
[1752611790058,0.97640819,685.69,685.13,0.9713569]
[1752611790260,0.97640819,685.71,685.15,0.9713569]
[1752611792863,0.97640819,685.72,685.14,0.9713569]
[1752611793661,0.97640819,685.72,685.15,0.9713569]
[1752611795062,0.97640819,685.72,685.14,0.9713569]
[1752611795265,0.97640819,685.73,685.16,0.9713569]
[1752611795465,0.97640819,685.74,685.16,0.9713569]
[1752611796261,0.97640819,685.74,685.01,1.30608]
[1752611796262,0.97640819,685.72,685.17,0.9713569]
[1752611799267,0.97640819,685.71,685.17,0.9713569]
[1752611801765,0.97640819,685.72,685.17,0.9713569]
[1752611802767,0.97640819,685.7,685.18,0.9713569]
[1752611803667,0.97640819,685.68,685.19,0.9713569]
[1752611803869,0.97640819,685.68,685.2,0.9713569]
[1752611804469,0.97640819,685.68,685.19,0.9713569]
[1752611805068,0.97640819,685.74,685.16,0.9713569]
[1752611805372,0.97640819,685.75,685.16,0.9713569]
[1752611805869,0.97640819,685.74,685.16,0.9713569]
[1752611806374,0.97640819,685.75,685.16,0.9713569]
[1752611806573,0.97640819,685.83,685.24,0.9713569]
[1752611806770,0.97640819,685.83,685.25,0.9713569]
[1752611807369,0.97640819,685.83,685.24,0.9713569]
[1752611808472,0.97640819,685.84,685.24,0.9713569]
[1752611809975,0.97640819,685.84,685.23,0.9713569]
[1752611811780,0.97640819,685.85,685.22,0.9713569]
[1752611812678,0.97640819,685.82,685.25,0.9713569]
[1752611813478,0.97640819,685.81,685.24,0.9713569]
[1752611813681,0.97640819,685.82,685.25,0.9713569]
[1752611813981,0.97640819,685.81,685.24,0.9713569]
[1752611814176,0.97640819,685.82,685.24,0.9713569]
[1752611814483,0.97640819,685.81,685.25,0.9713569]
[1752611815780,0.97640819,685.8,685.25,0.9713569]
[1752611816278,0.97640819,685.81,685.25,0.9713569]
[1752611816683,0.97640819,685.8,685.25,0.9713569]
[1752611816883,0.97640819,685.81,685.24,0.9713569]
[1752611820186,0.97640819,685.82,685.24,0.9713569]
[1752611820487,0.97640819,685.82,685.23,0.9713569]
[1752611821692,0.97640819,685.8,685.25,0.9713569]
[1752611822088,0.97640819,685.8,685.24,0.9713569]
[1752611822291,0.97640819,685.8,685.25,0.9713569]
[1752611822488,0.97640819,685.8,685.24,0.9713569]
[1752611822693,0.97640819,685.8,684.61,0.25374233]
[1752611822694,0.97640819,685.8,685.25,0.9713569]
[1752611823493,0.97640819,685.92,685.16,0.9713569]
[1752611824091,0.97640819,685.9,685.14,0.9713569]
[1752611824290,0.97640819,685.84,685.08,0.9713569]
[1752611824790,0.97640819,685.84,685.09,0.9713569]
[1752611825495,0.97640819,685.74,685.15,0.9713569]
[1752611825696,0.97640819,685.71,685.12,0.9713569]
[1752611825990,0.97640819,685.71,684.61,0.25374233]
[1752611825991,0.97640819,685.72,685.11,0.9713569]
[1752611826690,0.97640819,685.69,685.13,0.9713569]
[1752611826895,0.97640819,685.66,685.1,0.9713569]
[1752611829493,0.97640819,685.68,685.09,0.9713569]
[1752611834899,0.97640819,685.67,685.09,0.9713569]
[1752611835099,0.97640819,685.68,685.09,0.9713569]
[1752611835797,0.97640819,685.67,685.1,0.9713569]
[1752611837100,0.97640819,685.67,684.61,0.25374233]
[1752611837101,0.97640819,685.69,685.08,0.9713569]
[1752611837299,0.97640819,685.69,684.61,0.25374233]
[1752611837300,0.97640819,685.68,685.07,0.9713569]
[1752611839604,0.97640819,685.67,685.07,0.9713569]
[1752611840207,0.97640819,685.66,685.02,0.9713569]
[1752611840503,0.97640819,685.66,685.03,0.9713569]
[1752611840803,0.97640819,685.67,685.03,0.9713569]
[1752611841207,0.97640819,685.68,685.04,0.9713569]
[1752611841408,0.97640819,685.71,685.08,0.9713569]
[1752611841707,0.97640819,685.73,685.09,0.9713569]
[1752611842406,1.3109899,685.88,685.09,0.9713569]
[1752611842407,0.97640819,685.72,685.09,0.9713569]
[1752611842604,0.97640819,685.72,685.1,0.9713569]
[1752611843302,0.97640819,685.71,685.1,0.9713569]
[1752611843908,0.97640819,685.74,685.08,0.9713569]
[1752611844108,0.97640819,685.73,685.08,0.9713569]
[1752611847210,0.97640819,685.73,684.93,1.30608]
[1752611847211,0.97640819,685.73,685.09,0.9713569]
[1752611847807,0.97640819,685.73,685.08,0.9713569]
[1752611848006,0.97640819,685.68,685.05,0.9713569]
[1752611848310,0.97640819,685.67,685.05,0.9713569]
[1752611851511,1.3109899,685.81,685.06,0.9713569]
[1752611851512,0.97640819,685.66,685.06,0.9713569]
[1752611852712,0.97640819,685.6,684.98,0.9713569]
[1752611852915,0.97640819,685.59,684.98,0.9713569]
[1752611853215,0.97640819,685.6,684.98,0.9713569]
[1752611853612,0.97640819,685.57,684.95,0.9713569]
[1752611853816,0.97640819,685.54,684.97,0.9713569]
[1752611854317,0.97640819,685.54,684.96,0.9713569]
[1752611855317,0.97640819,685.54,684.83,1.30608]
[1752611855318,0.97640819,685.55,684.95,0.9713569]
[1752611855515,0.97640819,685.54,684.95,0.9713569]
[1752611856218,0.97640819,685.55,684.95,0.9713569]
[1752611857419,0.97640819,685.56,684.94,0.9713569]
[1752611857919,1.3109899,685.68,684.94,0.9713569]
[1752611857920,0.97640819,685.55,684.94,0.9713569]
[1752611858519,0.97640819,685.56,684.94,0.9713569]
[1752611859215,0.97640819,685.56,684.93,0.9713569]
[1752611859915,3.2774749,686.3,684.8,0.2538858]
[1752611859916,0.97640819,685.55,684.94,0.9713569]
[1752611860121,0.97640819,685.65,684.87,0.9713569]
[1752611861219,0.97640819,685.63,684.85,0.9713569]
[1752611861617,0.97640819,685.57,684.8,0.2538858]
[1752611864219,0.97640819,685.58,684.8,0.2538858]
[1752611866623,1.3109899,685.76,684.8,0.2538858]
[1752611866624,0.97640819,685.59,684.8,0.2538858]
[1752611869826,0.97640819,685.51,684.8,0.2538858]
[1752611871926,0.97640819,685.52,684.8,0.2538858]
[1752611872329,0.97640819,685.51,684.8,0.2538858]
[1752611873828,0.97640819,685.54,684.8,0.2538858]
[1752611874026,0.97640819,685.56,684.8,0.2538858]
[1752611874730,0.97640819,685.45,684.8,0.2538858]
[1752611875331,0.97640819,685.46,684.8,0.2538858]
[1752611876126,0.97640819,685.45,684.8,0.2538858]
[1752611876330,0.97640819,685.46,684.8,0.2538858]
[1752611877634,0.97640819,685.42,684.8,0.2538858]
[1752611878435,0.97640819,685.43,684.8,0.2538858]
[1752611880337,0.97640819,685.44,684.8,0.2538858]
[1752611880937,0.97640819,685.41,684.8,0.2538858]
[1752611881333,0.97640819,685.42,684.8,0.2538858]
[1752611881534,0.97640819,685.4,684.8,0.2538858]
[1752611881837,0.97640819,685.41,684.8,0.2538858]
[1752611882134,0.97640819,685.38,684.8,0.2538858]
[1752611883037,0.25364801,686.52,684.8,0.2538858]
[1752611883038,0.97640819,685.36,684.8,0.2538858]
[1752611883638,0.97640819,685.37,684.8,0.2538858]
[1752611884336,0.97640819,685.36,684.8,0.2538858]
[1752611885232,0.97640819,685.37,684.8,0.2538858]
[1752611885938,0.97640819,685.41,684.8,0.2538858]
[1752611886438,0.97640819,685.45,684.8,0.2538858]
[1752611888841,0.97640819,685.47,684.8,0.2538858]
[1752611889340,0.97640819,685.5,684.8,0.2538858]
[1752611892945,0.97640819,685.49,684.8,0.2538858]
[1752611893550,0.97640819,685.51,684.8,0.2538858]
[1752611894244,0.97640819,685.5,684.8,0.2538858]
[1752611896353,0.97640819,685.49,684.8,0.2538858]
[1752611896552,0.97640819,685.5,684.8,0.2538858]
[1752611897250,0.97640819,685.49,684.8,0.2538858]
[1752611898456,0.97640819,685.5,684.8,0.2538858]
[1752611899354,0.97640819,685.47,684.8,0.2538858]
[1752611903658,0.97640819,685.45,684.8,0.2538858]
[1752611904558,0.97640819,685.44,684.8,0.2538858]
[1752611906255,0.97640819,685.43,684.8,0.2538858]
[1752611907364,0.97640819,685.42,684.8,0.2538858]
[1752611908363,0.97640819,685.41,684.8,0.2538858]
[1752611908659,0.97640819,685.42,684.8,0.2538858]
[1752611910263,0.97640819,685.41,684.8,0.2538858]
[1752611911460,0.97640819,685.4,684.8,0.2538858]
[1752611912259,0.97640819,685.39,684.8,0.2538858]
[1752611912463,0.97640819,685.38,684.8,0.2538858]
[1752611914365,0.97640819,685.37,684.8,0.2538858]
[1752611914662,0.97640819,685.38,684.8,0.2538858]
[1752611916264,0.97640819,685.37,684.8,1.2252427]
[1752611917367,0.97640819,685.36,684.8,1.2252427]
[1752611918367,0.97640819,685.36,684.81,0.9713569]
[1752611918563,0.97640819,685.33,684.83,0.9713569]
[1752611919068,0.97640819,685.34,684.82,0.9713569]
[1752611919269,0.97640819,685.34,684.83,0.9713569]
[1752611919464,0.97640819,685.34,684.84,0.9713569]
[1752611920368,0.97640819,685.33,684.84,0.9713569]
[1752611921369,0.97640819,685.35,684.87,0.9713569]
[1752611923267,0.97640819,685.34,684.87,0.9713569]
[1752611924265,0.97640819,685.34,684.88,0.9713569]
[1752611925266,0.97640819,685.35,684.88,0.9713569]
[1752611925570,0.97640819,685.36,684.87,0.9713569]
[1752611925966,0.97640819,685.47,684.8,1.2252427]
[1752611926171,0.97640819,685.48,684.8,1.2252427]
[1752611926371,0.97640819,685.48,684.81,0.9713569]
[1752611926570,0.97640819,685.47,684.8,1.2252427]
[1752611928273,0.97640819,685.47,684.81,0.9713569]
[1752611928469,0.97640819,685.47,684.8,1.2252427]
[1752611929069,0.97640819,685.47,684.81,0.9713569]
[1752611930974,0.97640819,685.46,684.81,0.9713569]
[1752611934673,0.25390525,685.8,684.8,0.2538858]
[1752611935477,0.98351558,685.48,684.82,0.98190445]
[1752611935778,0.98351558,685.41,684.87,0.98190445]
[1752611936175,0.98351558,685.4,684.87,0.98190445]
[1752611936578,0.98351558,685.44,684.92,0.98190445]
[1752611937078,0.98351558,685.44,684.8,0.2538858]
[1752611937079,0.98351558,685.49,684.97,0.98190445]
[1752611937275,0.98351558,685.5,684.97,0.98190445]
[1752611937475,0.98351558,685.5,684.96,0.98190445]
[1752611938379,0.98351558,685.51,684.96,0.98190445]
[1752611938883,0.98351558,685.5,684.96,0.98190445]
[1752611939380,0.98351558,685.49,684.93,0.98190445]
[1752611939778,0.98351558,685.47,684.92,0.98190445]
[1752611939980,0.98351558,685.47,684.87,0.98190445]
[1752611940286,0.98351558,685.42,684.87,0.98190445]
[1752611940583,0.98351558,685.4,684.83,0.98190445]
[1752611942385,0.98351558,685.39,684.83,0.98190445]
[1752611942783,0.98351558,685.39,684.84,0.98190445]
[1752611942986,0.98351558,685.38,684.84,0.98190445]
[1752611943885,0.98351558,685.39,684.84,0.98190445]
[1752611944585,0.98351558,685.38,684.84,0.98190445]
[1752611944990,0.98351558,685.37,684.85,0.98190445]
[1752611948690,0.98351558,685.36,684.86,0.98190445]
[1752611950991,0.98351558,685.36,684.87,0.98190445]
[1752611953591,0.98351558,685.34,684.88,0.98190445]
[1752611954093,0.98351558,685.35,684.87,0.98190445]
[1752611954289,0.98351558,685.36,684.88,0.98190445]
[1752611954490,0.98351558,685.34,684.89,0.98190445]
[1752611954791,0.25390525,685.8,684.8,0.2538858]
[1752611954792,0.98351558,685.36,684.9,0.98190445]
[1752611954988,0.98351558,685.35,684.91,0.98190445]
[1752611956088,0.98351558,685.4,684.88,0.98190445]
[1752611956294,0.98351558,685.39,684.87,0.98190445]
[1752611956890,0.98351558,685.38,684.85,0.98190445]
[1752611957788,0.98351558,685.38,684.86,0.98190445]
[1752611958093,0.98351558,685.37,684.86,0.98190445]
[1752611962295,0.98351558,685.38,684.85,0.98190445]
[1752611963192,0.98351558,685.35,684.82,0.98190445]
[1752611964191,0.98351558,685.34,684.82,0.98190445]
[1752611965996,0.98351558,685.31,684.84,0.98190445]
[1752611966195,0.98351558,685.31,684.85,0.98190445]
[1752611969697,0.98351558,685.3,684.85,0.98190445]
[1752611970692,0.98351558,685.3,684.84,0.98190445]
[1752611970897,0.98351558,685.31,684.83,0.98190445]
[1752611971496,0.98351558,685.32,684.82,0.98190445]
[1752611971996,0.98351558,685.34,684.82,0.98190445]
[1752611972193,0.98351558,685.34,684.81,0.98190445]
[1752611973099,0.98351558,685.34,684.82,0.98190445]
[1752611974598,0.98351558,685.34,684.81,0.98190445]
[1752611974897,0.98351558,685.31,684.8,0.2538858]
[1752611975200,0.98351558,685.3,684.8,0.2538858]
[1752611975399,0.98351558,685.29,684.8,0.2538858]
[1752611976399,0.98351558,685.3,684.8,0.2538858]
[1752611978296,0.98351558,685.31,684.8,0.2538858]
[1752611981001,0.98351558,685.32,684.8,0.2538858]
[1752611981299,0.98351558,685.31,684.8,0.2538858]
[1752611981997,0.98351558,685.29,684.8,0.2538858]
[1752611987106,0.98351558,685.44,684.8,0.2538858]
[1752611987306,0.98351558,685.45,684.8,0.2538858]
[1752611989708,0.98351558,685.43,684.8,0.2538858]
[1752611993011,0.98351558,685.43,684.64,0.98190445]
[1752611993216,0.98351558,685.32,684.71,0.98190445]
[1752611993419,0.98351558,685.27,684.74,0.98190445]
[1752611995921,0.98351558,685.26,684.73,0.98190445]
[1752611996617,0.98351558,685.25,684.73,0.98190445]
[1752611997324,0.98351558,685.26,684.72,0.98190445]
[1752611997523,0.98351558,685.24,684.73,0.98190445]
[1752611997920,0.98351558,685.19,684.68,0.98190445]
[1752611998625,0.98351558,685.12,684.62,0.25402202]
[1752611999721,0.98351558,685.12,684.6,0.98190445]
[1752612000625,0.98351558,685.13,684.59,0.98190445]
[1752612001322,0.98351558,685.1,684.54,0.98190445]
[1752612001523,0.98351558,685.09,684.53,0.98190445]
[1752612002121,0.98351558,685.08,684.49,0.98190445]
[1752612002326,0.98351558,685.07,684.49,0.98190445]
[1752612003227,0.98351558,685.09,684.47,0.98190445]
[1752612004328,0.98351558,685.1,684.46,0.98190445]
[1752612005127,0.98351558,685.09,684.44,0.98190445]
[1752612005324,0.98351558,685.07,684.42,0.25408415]
[1752612005528,0.98351558,685.05,684.42,0.25408415]
[1752612006325,0.98351558,685.02,684.42,0.25408415]
[1752612006524,0.98351558,684.97,684.42,0.25408415]
[1752612007129,1.9670311,685.24,684.42,0.25408415]
[1752612007130,0.98351558,684.98,684.42,0.25408415]
[1752612007430,0.98351558,684.99,684.42,0.25408415]
[1752612008333,0.98351558,685.0,684.42,0.25408415]
[1752612009330,0.98351558,685.01,684.42,0.25408415]
[1752612009830,0.98351558,685.04,684.42,0.25408415]
[1752612010032,0.98351558,685.12,684.42,0.25408415]
[1752612010934,0.98351558,685.11,684.42,0.25408415]
[1752612014336,0.98351558,685.12,684.42,0.25408415]
[1752612015838,0.98351558,685.09,684.42,0.25408415]
[1752612022748,0.98351558,685.17,684.42,0.25408415]
[1752612022945,0.98351558,685.2,684.42,0.25408415]
[1752612025951,0.98351558,685.19,684.42,0.25408415]
[1752612028052,0.98351558,685.2,684.42,0.25408415]
[1752612028249,0.98351558,685.21,684.42,0.25408415]
[1752612028751,0.98351558,685.23,684.42,0.25408415]
[1752612029051,0.98351558,685.27,684.45,0.98190445]
[1752612029354,0.98351558,685.3,684.48,0.98190445]
[1752612030253,0.98351558,685.3,684.49,0.98190445]
[1752612031255,0.98351558,685.29,684.49,0.98190445]
[1752612032254,0.98351558,685.29,684.5,0.98190445]
[1752612032553,0.98351558,685.28,684.51,0.98190445]
[1752612033556,0.98351558,685.27,684.51,0.98190445]
[1752612034457,0.98351558,685.27,684.52,0.98190445]
[1752612034653,0.98351558,685.28,684.51,0.98190445]
[1752612035155,0.98351558,685.29,684.53,0.98190445]
[1752612035859,0.98351558,685.3,684.53,0.98190445]
[1752612036153,0.98351558,685.29,684.53,0.98190445]
[1752612036756,0.98351558,685.28,684.54,0.98190445]
[1752612038369,0.98351558,685.28,684.55,0.98190445]
[1752612039171,0.98351558,685.27,684.55,0.98190445]
[1752612039667,0.98351558,685.28,684.55,0.98190445]
[1752612040165,0.98351558,685.27,684.55,0.98190445]
[1752612041267,0.98351558,685.27,684.56,0.98190445]
[1752612041569,0.98351558,685.42,684.47,0.98190445]
[1752612042968,0.98351558,685.42,684.48,0.98190445]
[1752612044671,0.98351558,685.53,684.59,0.98190445]
[1752612045971,0.98351558,685.56,684.57,0.98190445]
[1752612046274,0.98351558,685.41,684.68,0.98190445]
[1752612047276,0.98351558,685.47,684.74,0.98190445]
[1752612047776,0.98351558,685.54,684.81,0.98190445]
[1752612048471,0.98351558,685.55,684.8,0.98190445]
[1752612048974,0.98351558,685.54,684.8,0.98190445]
[1752612049172,0.98351558,685.55,684.79,0.98190445]
[1752612049972,0.98351558,685.54,684.8,0.98190445]
[1752612050172,0.98351558,685.55,684.79,0.98190445]
[1752612050875,0.98351558,685.55,684.78,0.98190445]
[1752612051170,0.98351558,685.56,684.77,0.98190445]
[1752612051672,0.98351558,685.56,684.78,0.98190445]
[1752612052277,0.98351558,685.56,684.77,0.98190445]
[1752612052876,0.98351558,685.57,684.77,0.98190445]
[1752612053173,0.98351558,685.57,684.76,0.98190445]
[1752612053877,0.98351558,685.66,684.85,0.98190445]
[1752612054278,0.98351558,685.67,684.84,0.98190445]
[1752612055279,0.98351558,685.69,684.82,0.98190445]
[1752612055574,0.98351558,685.69,684.81,0.98190445]
[1752612056278,0.98351558,685.69,684.8,0.98190445]
[1752612056478,0.25390525,685.8,684.8,0.98190445]
[1752612056479,0.98351558,685.7,684.8,0.98190445]
[1752612057179,0.98351558,685.71,684.78,0.98190445]
[1752612057382,0.98351558,685.71,684.77,0.98190445]
[1752612057778,0.98351558,685.7,684.78,0.98190445]
[1752612058078,0.98351558,685.7,684.77,0.98190445]
[1752612058278,0.98351558,685.71,684.76,0.98190445]
[1752612058783,0.98351558,685.7,684.76,0.98190445]
[1752612059179,0.98351558,685.72,684.75,0.98190445]
[1752612059382,0.98351558,685.72,684.74,0.98190445]
[1752612060984,0.98351558,685.72,684.75,0.98190445]
[1752612061280,0.98351558,685.68,684.72,0.98190445]
[1752612061480,0.98351558,685.62,684.66,0.98190445]
[1752612061683,0.98351558,685.61,684.67,0.98190445]
[1752612062184,0.98351558,685.61,684.66,0.98190445]
[1752612062381,0.98351558,685.62,684.66,0.98190445]
[1752612064488,0.98351558,685.63,684.67,0.98190445]
[1752612064785,0.98351558,685.64,684.68,0.98190445]
[1752612065890,0.98351558,685.67,684.66,0.98190445]
[1752612066388,0.98351558,685.69,684.65,0.98190445]
[1752612066888,0.97625445,685.69,684.65,0.97569768]
[1752612067185,0.97625445,685.69,684.66,0.97569768]
[1752612068386,0.97625445,685.73,684.7,0.97569768]
[1752612069188,0.97625445,685.72,684.71,0.97569768]
[1752612070987,0.97625445,685.73,684.72,0.97569768]
[1752612071691,0.97625445,685.75,684.74,0.97569768]
[1752612072793,0.97625445,685.76,684.73,0.97569768]
[1752612073089,0.97625445,685.79,684.76,0.97569768]
[1752612075089,0.97625445,685.79,684.75,0.97569768]
[1752612075294,0.97625445,685.79,684.76,0.97569768]
[1752612075792,0.97625445,685.77,684.77,0.97569768]
[1752612076295,0.97625445,685.77,684.8,0.97569768]
[1752612076992,0.97625445,685.76,684.8,0.97569768]
[1752612077891,0.97625445,685.76,684.81,0.97569768]
[1752612078493,0.97625445,685.77,684.8,0.97569768]
[1752612079297,0.97625445,685.78,684.8,0.97569768]
[1752612079993,0.97625445,685.78,684.52,1.9638089]
[1752612079994,0.97625445,685.78,684.79,0.97569768]
[1752612080295,0.97625445,685.78,684.8,0.97569768]
[1752612081295,0.97625445,685.77,684.81,0.97569768]
[1752612082196,0.97625445,685.77,684.82,0.97569768]
[1752612082895,0.97625445,685.76,684.83,0.97569768]
[1752612084296,0.97625445,685.75,684.83,0.97569768]
[1752612084591,0.97625445,685.75,684.84,0.97569768]
[1752612086194,0.97625445,685.74,684.85,0.97569768]
[1752612087195,0.97625445,685.74,684.86,0.97569768]
[1752612088197,0.97625445,685.73,684.86,0.97569768]
[1752612088398,0.97625445,685.72,684.87,0.97569768]
[1752612089198,0.97625445,685.71,684.88,0.97569768]
[1752612089898,0.97625445,685.7,684.9,0.97569768]
[1752612090296,0.97625445,685.69,684.9,0.97569768]
[1752612091298,0.97625445,685.69,684.91,0.97569768]
[1752612093197,1.56525935,685.8,684.8,1.3092059]
[1752612093402,0.97855029,685.68,684.92,0.97762767]
[1752612094301,0.97855029,685.68,684.93,0.97762767]
[1752612095398,0.97855029,685.67,684.93,0.97762767]
[1752612096202,0.97855029,685.67,684.94,0.97762767]
[1752612097203,0.97855029,685.66,684.95,0.97762767]
[1752612098207,0.97855029,685.66,684.96,0.97762767]
[1752612099208,0.97855029,685.65,684.97,0.97762767]
[1752612100207,0.97855029,685.65,684.99,0.97762767]
[1752612101210,0.97855029,685.64,685.0,0.97762767]
[1752612102208,0.97855029,685.64,684.42,0.25408415]
[1752612102209,0.97855029,685.63,685.02,0.97762767]
[1752612103313,0.97855029,685.62,685.04,0.97762767]
[1752612104307,0.97855029,685.6,685.05,0.97762767]
[1752612105112,0.97855029,685.59,685.06,0.97762767]
[1752612106214,0.97855029,685.58,685.07,0.97762767]
[1752612106414,0.97855029,685.59,685.07,0.97762767]
[1752612107216,0.97855029,685.58,685.08,0.97762767]
[1752612107913,0.97855029,685.57,685.08,0.97762767]
[1752612108117,0.97855029,685.55,685.06,0.97762767]
[1752612108317,0.97855029,685.55,685.03,0.97762767]
[1752612108619,0.97855029,685.52,684.99,0.97762767]
[1752612108817,0.97855029,685.5,684.97,0.97762767]
[1752612109322,0.97855029,685.49,684.97,0.97762767]
[1752612110120,0.97855029,685.5,684.97,0.97762767]
[1752612110420,0.97855029,685.47,684.94,0.97762767]
[1752612111216,0.97855029,685.46,684.94,0.97762767]
[1752612112718,0.97855029,685.45,684.89,0.97762767]
[1752612112921,0.97855029,685.43,684.87,0.97762767]
[1752612114117,0.97855029,685.43,684.86,0.97762767]
[1752612114322,0.97855029,685.44,684.87,0.97762767]
[1752612114621,0.97855029,685.46,684.88,0.97762767]
[1752612115620,0.97855029,685.46,684.89,0.97762767]
[1752612117222,0.97855029,685.46,684.88,0.97762767]
[1752612118026,0.97855029,685.45,684.89,0.97762767]
[1752612118226,1.3113541,685.59,684.88,0.97762767]
[1752612118227,0.97855029,685.46,684.88,0.97762767]
[1752612118426,0.97855029,685.45,684.88,0.97762767]
[1752612118627,0.97855029,685.45,684.89,0.97762767]
[1752612119423,0.97855029,685.46,684.88,0.97762767]
[1752612119726,0.97855029,685.46,684.89,0.97762767]
[1752612120022,0.97855029,685.45,684.89,0.97762767]
[1752612122425,0.97855029,685.46,684.89,0.97762767]
[1752612122725,0.97855029,685.43,684.91,0.97762767]
[1752612124432,0.97855029,685.44,684.9,0.97762767]
[1752612126333,0.97855029,685.44,684.89,0.97762767]
[1752612127028,1.3113541,685.57,684.9,0.97762767]
[1752612127234,0.97855029,685.59,684.95,0.97762767]
[1752612127430,0.97855029,685.58,684.95,0.97762767]
[1752612134337,0.97855029,685.58,684.96,0.97762767]
[1752612134537,0.97855029,685.57,684.96,0.97762767]
[1752612135135,0.97855029,685.58,684.96,0.97762767]
[1752612135337,0.97855029,685.6,684.98,0.97762767]
[1752612135837,0.97855029,685.63,685.01,0.97762767]
[1752612136733,0.97855029,685.57,685.05,0.97762767]
[1752612137238,0.97855029,685.57,685.04,0.97762767]
[1752612137537,0.97855029,685.57,684.93,1.3092059]
[1752612137538,0.97855029,685.57,685.05,0.97762767]
[1752612144841,0.97855029,685.59,685.07,0.97762767]
[1752612149946,0.97855029,685.6,685.07,0.97762767]
[1752612150744,0.97855029,685.59,685.07,0.97762767]
[1752612155647,0.97855029,685.59,685.06,0.97762767]
[1752612155845,0.25385432,685.88,684.42,0.25408415]
[1752612155846,0.97855029,685.62,685.05,0.97762767]
[1752612156448,0.97855029,685.63,685.05,0.97762767]
[1752612160348,0.97855029,685.63,685.03,0.97762767]
[1752612160650,0.97855029,685.65,685.03,0.97762767]
[1752612162351,0.97855029,685.64,685.03,0.97762767]
[1752612162755,0.97855029,685.64,685.04,0.97762767]
[1752612163156,0.97855029,685.64,685.03,0.97762767]
[1752612165158,0.97855029,685.63,685.02,0.97762767]